Department Family,Entity,Date,Expense Type,Expense Area,Supplier,Transaction Number,Amount
DOH,London Ambulance Service NHS Trust,16/05/2018,Course And Conference Fees,Learning & Development,Imperial College Healthcare Nhs Trust,3580,48000
DOH,London Ambulance Service NHS Trust,01/05/2018,Lease Costs For Ops Vehicles,Frontline Ambulance Leases,De Lage Landen Leasing Ltd,390963,104430.17
DOH,London Ambulance Service NHS Trust,01/05/2018,Data Network Rental,Networks,Bt Global Services,393335,31869.74
DOH,London Ambulance Service NHS Trust,09/05/2018,Computer Software,Im&T Management,Software Box Ltd,393574,36450
DOH,London Ambulance Service NHS Trust,09/05/2018,Computer Software Maintenance,Im&T Tech Design Authority,Software Box Ltd,393574,26700
DOH,London Ambulance Service NHS Trust,09/05/2018,Course And Conference Fees,Im&T Tech Design Authority,Software Box Ltd,393574,2400
DOH,London Ambulance Service NHS Trust,01/05/2018,Vehicle Recovery,Fleet Support Services,The Mansfield Group,394070,60349.61
DOH,London Ambulance Service NHS Trust,09/05/2018,Private Ambulance Hire,Ops Central - Private Amb,Falck Uk Ambulance Service Ltd,394366,80991.96
DOH,London Ambulance Service NHS Trust,02/05/2018,Medical & Surgical Items,South Area Managed Stores,Physio-Control Uk Sales Ltd,394459,31626
DOH,London Ambulance Service NHS Trust,09/05/2018,Vehicles,Capital,Volkswagen Group Uk Ltd,394960,43590.31
DOH,London Ambulance Service NHS Trust,02/05/2018,Consultancy Fees,Sm - Quality & Assurance Pmo,Discidium Limited,395078,87480
DOH,London Ambulance Service NHS Trust,01/05/2018,Buildings,Capital,Bowmite Limited,395197,31448.04
DOH,London Ambulance Service NHS Trust,01/05/2018,Buildings,Capital,Coniston Limited,395230,33600
DOH,London Ambulance Service NHS Trust,01/05/2018,Buildings,Capital,Coniston Limited,395240,34840.8
DOH,London Ambulance Service NHS Trust,01/05/2018,Buildings,Capital,Coniston Limited,395241,41678.21
DOH,London Ambulance Service NHS Trust,02/05/2018,Professional Fees,Strategy,Pa Consulting Services Ltd,396486,40664.4
DOH,London Ambulance Service NHS Trust,09/05/2018,Lease Costs For Ops Vehicles,Non Emergency Transport,Tp Leasing Ltd,396598,74144.03
DOH,London Ambulance Service NHS Trust,02/05/2018,Contract Labour,Corporate Logistics,Churchill Contract Services Ltd,396599,36319.1
DOH,London Ambulance Service NHS Trust,02/05/2018,Agency Professional Staff,Im&T Tech Design Authority,Tm Management Solutions Ltd,396604,50400
DOH,London Ambulance Service NHS Trust,01/05/2018,Tyres,Fleet Support Services,Ats Euromaster Ltd,396630,65026.5
DOH,London Ambulance Service NHS Trust,02/05/2018,Network Equipment & Services,Capital,Bt Global Services,396881,228480
DOH,London Ambulance Service NHS Trust,09/05/2018,Cleaning Of Premises,Estate Management,Lakethorne Ltd,397095,91465.95
DOH,London Ambulance Service NHS Trust,09/05/2018,Computer Hardware,Capital,Dell Computer Corporation Ltd,397193,41965.44
DOH,London Ambulance Service NHS Trust,09/05/2018,Lease Costs For Ops Vehicles,Non Emergency Transport,Tp Leasing Ltd,397230,42368.02
DOH,London Ambulance Service NHS Trust,02/05/2018,Occupational Health Fees,Staff Support,People Asset Management Ltd,397405,77269.4
DOH,London Ambulance Service NHS Trust,09/05/2018,Vehicles,Capital,Volkswagen Group Uk Ltd,397505,43590.31
DOH,London Ambulance Service NHS Trust,16/05/2018,Subscriptions To Associations,Trust Management,Association Of Ambulance Chief Executives,397515,30000
DOH,London Ambulance Service NHS Trust,16/05/2018,Cad Tools Maintenance,Cad Support,Oracle Corporation Uk Limited,397548,27399.86
DOH,London Ambulance Service NHS Trust,09/05/2018,Electricity,Estate Management,British Gas,397746,42736.5
DOH,London Ambulance Service NHS Trust,16/05/2018,Data Comms Maintenance,Networks,Bt Plc,397906,72176.76
DOH,London Ambulance Service NHS Trust,16/05/2018,Technical Support - Contract,Capita Contract,Capita Secure Information Solutions Ltd,398316,58898.58
DOH,London Ambulance Service NHS Trust,23/05/2018,Private Ambulance Hire,Ops Central - Private Amb,Falck Uk Ambulance Service Ltd,398478,76152.9
DOH,London Ambulance Service NHS Trust,23/05/2018,Vehicles,Capital,Volkswagen Group Uk Ltd,398728,43590.31
DOH,London Ambulance Service NHS Trust,23/05/2018,Vehicles,Capital,Volkswagen Group Uk Ltd,398729,43590.31
DOH,London Ambulance Service NHS Trust,23/05/2018,Vehicles,Capital,Volkswagen Group Uk Ltd,398731,43590.31
DOH,London Ambulance Service NHS Trust,16/05/2018,Vehicles,Capital,Volkswagen Group Uk Ltd,398732,43590.31
DOH,London Ambulance Service NHS Trust,16/05/2018,Vehicles,Capital,Volkswagen Group Uk Ltd,398733,43590.31
DOH,London Ambulance Service NHS Trust,16/05/2018,Vehicles,Capital,Volkswagen Group Uk Ltd,398734,43590.31
DOH,London Ambulance Service NHS Trust,23/05/2018,Vehicles,Capital,Volkswagen Group Uk Ltd,398735,43590.31
DOH,London Ambulance Service NHS Trust,23/05/2018,Training Accommodation,International Recruitment 1718,The Independents Hotel Reservations Ltd,398786,36120
DOH,London Ambulance Service NHS Trust,23/05/2018,Training Accommodation,International Recruitment 1617,The Independents Hotel Reservations Ltd,398787,60610
DOH,London Ambulance Service NHS Trust,16/05/2018,Cad Tools Maintenance,Cad Support,Northgate Public Services (Uk) Ltd,398843,49367.77
DOH,London Ambulance Service NHS Trust,16/05/2018,Defibrillator Maintenance,Supply & Material Management,Physio-Control Uk Sales Ltd,398846,51072
DOH,London Ambulance Service NHS Trust,23/05/2018,Vehicles,Capital,Volkswagen Group Uk Ltd,399364,43590.31
DOH,London Ambulance Service NHS Trust,16/05/2018,Professional Fees,Director Of Finance,Discidium Limited,399621,59716.6
DOH,London Ambulance Service NHS Trust,23/05/2018,Subscriptions To Associations,Corporate Governance,Care Quality Commission,399975,249300
DOH,London Ambulance Service NHS Trust,23/05/2018,Computer Software,Management Accounts,Brovanture Limited,400025,28800
DOH,London Ambulance Service NHS Trust,17/05/2018,Agency Nurses,111 Operations,Hays Specialist Recruitment Ltd,400098,44436.31
DOH,London Ambulance Service NHS Trust,17/05/2018,Agency Nurses,111 Operations,Hays Specialist Recruitment Ltd,400099,27546.22
DOH,London Ambulance Service NHS Trust,23/05/2018,Taxis & Mini Cabs,Sub-Contracted Transport,Addison Lee,400415,47626.19
DOH,London Ambulance Service NHS Trust,24/05/2018,Vehicles,Capital,Wilker Auto Conversions,401270,59983
DOH,London Ambulance Service NHS Trust,24/05/2018,Vehicles,Capital,Wilker Auto Conversions,401271,59983
DOH,London Ambulance Service NHS Trust,24/05/2018,Vehicles,Capital,Wilker Auto Conversions,401272,59983
DOH,London Ambulance Service NHS Trust,24/05/2018,Vehicles,Capital,Wilker Auto Conversions,401273,59983
DOH,London Ambulance Service NHS Trust,24/05/2018,Vehicles,Capital,Wilker Auto Conversions,401274,59983
DOH,London Ambulance Service NHS Trust,24/05/2018,Vehicles,Capital,Wilker Auto Conversions,401275,59983
DOH,London Ambulance Service NHS Trust,24/05/2018,Vehicles,Capital,Wilker Auto Conversions,401276,59983
DOH,London Ambulance Service NHS Trust,24/05/2018,Vehicles,Capital,Wilker Auto Conversions,401277,59983
DOH,London Ambulance Service NHS Trust,24/05/2018,Vehicles,Capital,Wilker Auto Conversions,401278,59983
DOH,London Ambulance Service NHS Trust,24/05/2018,Vehicles,Capital,Wilker Auto Conversions,401280,59983
DOH,London Ambulance Service NHS Trust,24/05/2018,Vehicles,Capital,Wilker Auto Conversions,401281,59983
DOH,London Ambulance Service NHS Trust,24/05/2018,Vehicles,Capital,Wilker Auto Conversions,401282,59983
DOH,London Ambulance Service NHS Trust,24/05/2018,Vehicles,Capital,Wilker Auto Conversions,401283,59983
DOH,London Ambulance Service NHS Trust,24/05/2018,Vehicles,Capital,Wilker Auto Conversions,401284,59983
DOH,London Ambulance Service NHS Trust,24/05/2018,Vehicles,Capital,Wilker Auto Conversions,401285,59983
DOH,London Ambulance Service NHS Trust,24/05/2018,Vehicles,Capital,Wilker Auto Conversions,401286,59983
DOH,London Ambulance Service NHS Trust,24/05/2018,Vehicles,Capital,Wilker Auto Conversions,401287,59983
DOH,London Ambulance Service NHS Trust,24/05/2018,Vehicles,Capital,Wilker Auto Conversions,401288,59983
DOH,London Ambulance Service NHS Trust,24/05/2018,Vehicles,Capital,Wilker Auto Conversions,401292,59983
DOH,London Ambulance Service NHS Trust,03/05/2018,Ensign Insurance Debtor,Control Accounts,QBE International Insurance T/A Ensign,53182,492463.32
DOH,London Ambulance Service NHS Trust,29/05/2018,Medical Gas,Director Of Ops,British Oxygen,53541,"108,343.01"
DOH,London Ambulance Service NHS Trust,15/05/2018,Fuel,Director Of Ops,BP Oil,53323,"209,262.56"
DOH,London Ambulance Service NHS Trust,21/05/2018,Child Care Arrangements,Payroll,Computerserve Vouchers,53341,"30,036.42"
DOH,London Ambulance Service NHS Trust,31/05/2018,Fuel,Director Of Ops,BP Oil,53795,"216,728.72"
DOH,London Ambulance Service NHS Trust,15/05/2018,CNST Contributions,Legal Services,NHSLA,53562,"362,082.50"
DOH,London Ambulance Service NHS Trust,15/05/2018,Liability to 3rd Party Scheme,Legal Services,NHSLA,53562,40724.1
DOH,London Ambulance Service NHS Trust,15/05/2018,Property Expenses Scheme,Legal Services,NHSLA,53562,2431.5
